[Event "Titled Tuesday Blitz November 14 Late 2023"]
[White "Kovalenko, Igor"]
[Black "Herman, Matthew"]
[WhiteFideId "14117908"]
[BlackFideId "2028964"]
[WhiteElo "2871"]
[BlackElo "2525"]
[Result "1-0"]
[Round "3"]
[TimeControl "180+1"]
[Date "2023.11.14"]
[WhiteClock "0:00:17"]
[BlackClock "0:00:00"]
[Board "39"]

1. c4 {[%clk 0:02:59]}  Nf6 {[%clk 0:02:59]} 2. Nc3 {[%clk 0:02:59]}  g6 {[%clk 0:03:00]} 3. d4 {[%clk 0:03:00]}  d6 {[%clk 0:03:00]} 4. e4 {[%clk 0:03:00]}  Bg7 {[%clk 0:03:00]} 5. Bd3 {[%clk 0:03:00]}  O-O {[%clk 0:02:56]} 6. Nge2 {[%clk 0:03:01]}  c6 {[%clk 0:02:28]} 7. O-O {[%clk 0:03:00]}  a6 {[%clk 0:02:29]} 8. a4 {[%clk 0:02:58]}  a5 {[%clk 0:02:24]} 9. h3 {[%clk 0:02:57]}  e5 {[%clk 0:02:18]} 10. d5 {[%clk 0:02:57]}  Na6 {[%clk 0:02:18]} 11. Be3 {[%clk 0:02:57]}  Nd7 {[%clk 0:02:17]} 12. Ra3 {[%clk 0:02:55]}  f5 {[%clk 0:02:10]} 13. exf5 {[%clk 0:02:55]}  gxf5 {[%clk 0:02:11]} 14. f4 {[%clk 0:02:55]}  e4 {[%clk 0:02:11]} 15. Bb1 {[%clk 0:02:55]}  Nf6 {[%clk 0:02:03]} 16. Nd4 {[%clk 0:02:45]}  Nb4 {[%clk 0:01:48]} 17. Rf2 {[%clk 0:02:21]}  h5 {[%clk 0:01:39]} 18. Nde2 {[%clk 0:02:08]}  h4 {[%clk 0:01:06]} 19. g3 {[%clk 0:02:06]}  hxg3 {[%clk 0:01:06]} 20. Rg2 {[%clk 0:02:06]}  Kf7 {[%clk 0:01:05]} 21. Rxg3 {[%clk 0:02:05]}  Rg8 {[%clk 0:01:05]} 22. Kh2 {[%clk 0:02:05]}  Qe7 {[%clk 0:00:55]} 23. Bf2 {[%clk 0:02:00]}  Bd7 {[%clk 0:00:52]} 24. Rg5 {[%clk 0:01:52]}  Bh6 {[%clk 0:00:52]} 25. Bh4 {[%clk 0:01:42]}  Rh8 {[%clk 0:00:30]} 26. Ng3 {[%clk 0:01:41]}  Bxg5 {[%clk 0:00:28]} 27. Bxg5 {[%clk 0:01:42]}  Rag8 {[%clk 0:00:15]} 28. Nce2 {[%clk 0:01:29]}  Ng4+ {[%clk 0:00:07]} 29. Kg2 {[%clk 0:01:28]}  Rxg5 {[%clk 0:00:07]} 30. fxg5 {[%clk 0:01:28]}  Ne5 {[%clk 0:00:05]} 31. Qc1 {[%clk 0:01:19]}  Rh4 {[%clk 0:00:05]} 32. Ng1 {[%clk 0:01:00]}  Ng6 {[%clk 0:00:02]} 33. Kh1 {[%clk 0:00:52]}  Nf4 {[%clk 0:00:02]} 34. Qf1 {[%clk 0:00:48]}  Qxg5 {[%clk 0:00:02]} 35. Bxe4 {[%clk 0:00:48]}  fxe4 {[%clk 0:00:02]} 36. Nxe4 {[%clk 0:00:48]}  Qh6 {[%clk 0:00:02]} 37. Kh2 {[%clk 0:00:43]}  cxd5 {[%clk 0:00:02]} 38. cxd5 {[%clk 0:00:43]}  Nxd5 {[%clk 0:00:03]} 39. Rf3 {[%clk 0:00:38]}  Ke7 {[%clk 0:00:03]} 40. Qe1 {[%clk 0:00:34]}  Kd8 {[%clk 0:00:02]} 41. Qxa5+ {[%clk 0:00:33]}  b6 {[%clk 0:00:03]} 42. Qa8+ {[%clk 0:00:31]}  Ke7 {[%clk 0:00:03]} 43. Nf2 {[%clk 0:00:27]}  Qg5 {[%clk 0:00:02]} 44. Rg3 {[%clk 0:00:26]}  Qe5 {[%clk 0:00:02]} 45. Nf3 {[%clk 0:00:20]}  Qf6 {[%clk 0:00:02]} 46. Nxh4 {[%clk 0:00:20]}  Qxh4 {[%clk 0:00:02]} 47. Qg8 {[%clk 0:00:20]}  Qf6 {[%clk 0:00:03]} 48. Qg7+ {[%clk 0:00:20]}  Qxg7 {[%clk 0:00:03]} 49. Rxg7+ {[%clk 0:00:21]}  Kd8 {[%clk 0:00:03]} 50. h4 {[%clk 0:00:20]}  Nf6 {[%clk 0:00:03]} 51. Rg5 {[%clk 0:00:20]}  d5 {[%clk 0:00:03]} 52. b3 {[%clk 0:00:19]}  d4 {[%clk 0:00:03]} 53. Kg3 {[%clk 0:00:19]}  N4h5+ {[%clk 0:00:01]} 54. Kf3 {[%clk 0:00:19]}  Bc6+ {[%clk 0:00:02]} 55. Ke2 {[%clk 0:00:19]}  Nf4+ {[%clk 0:00:01]} 56. Kd2 {[%clk 0:00:20]}  Ke7 {[%clk 0:00:00]} 57. Rf5 {[%clk 0:00:17]} 1-0


[Site "https://www.chess.com"]

[Event "Titled Tuesday Blitz November 14 Late 2023"]
[White "Klekowski, Maciej"]
[Black "Shohat, Yotam"]
[WhiteFideId "1132717"]
[BlackFideId "2813955"]
[WhiteElo "2838"]
[BlackElo "2496"]
[Result "1/2-1/2"]
[Round "3"]
[TimeControl "180+1"]
[Date "2023.11.14"]
[WhiteClock "0:00:20"]
[BlackClock "0:00:05"]
[Board "41"]

1. Nf3 {[%clk 0:03:00]}  Nf6 {[%clk 0:02:58]} 2. b3 {[%clk 0:03:01]}  d6 {[%clk 0:02:42]} 3. d4 {[%clk 0:03:00]}  g6 {[%clk 0:02:40]} 4. Bb2 {[%clk 0:03:00]}  Bg7 {[%clk 0:02:34]} 5. g3 {[%clk 0:03:00]}  O-O {[%clk 0:02:16]} 6. Bg2 {[%clk 0:03:00]}  Nbd7 {[%clk 0:02:00]} 7. O-O {[%clk 0:03:00]}  Re8 {[%clk 0:01:53]} 8. c4 {[%clk 0:02:52]}  c6 {[%clk 0:01:52]} 9. Nc3 {[%clk 0:02:52]}  e5 {[%clk 0:01:51]} 10. e4 {[%clk 0:02:52]}  exd4 {[%clk 0:01:40]} 11. Nxd4 {[%clk 0:02:53]}  Nc5 {[%clk 0:01:41]} 12. Re1 {[%clk 0:02:52]}  Ng4 {[%clk 0:01:26]} 13. h3 {[%clk 0:02:52]}  Ne5 {[%clk 0:01:24]} 14. Re3 {[%clk 0:02:53]}  a5 {[%clk 0:01:22]} 15. f4 {[%clk 0:02:36]}  Ned7 {[%clk 0:01:18]} 16. Nde2 {[%clk 0:02:36]}  Nf6 {[%clk 0:01:16]} 17. Qd2 {[%clk 0:02:29]}  a4 {[%clk 0:01:15]} 18. bxa4 {[%clk 0:02:12]}  Qb6 {[%clk 0:01:04]} 19. Kh1 {[%clk 0:02:07]}  Nfxe4 {[%clk 0:01:00]} 20. Nxe4 {[%clk 0:02:05]}  Qxb2 {[%clk 0:00:57]} 21. Qxb2 {[%clk 0:01:58]}  Bxb2 {[%clk 0:00:58]} 22. Nf6+ {[%clk 0:01:58]}  Bxf6 {[%clk 0:00:53]} 23. Rxe8+ {[%clk 0:01:58]}  Kg7 {[%clk 0:00:53]} 24. Rd1 {[%clk 0:01:58]}  Nxa4 {[%clk 0:00:41]} 25. Rxd6 {[%clk 0:01:58]}  Nb6 {[%clk 0:00:30]} 26. c5 {[%clk 0:01:58]}  Nc4 {[%clk 0:00:29]} 27. a4 {[%clk 0:01:34]}  Nxd6 {[%clk 0:00:11]} 28. cxd6 {[%clk 0:01:35]}  b6 {[%clk 0:00:11]} 29. d7 {[%clk 0:01:35]}  Bb7 {[%clk 0:00:11]} 30. Rxa8 {[%clk 0:01:36]}  Bxa8 {[%clk 0:00:11]} 31. Nd4 {[%clk 0:01:36]}  c5 {[%clk 0:00:08]} 32. Nb5 {[%clk 0:01:29]}  Bxg2+ {[%clk 0:00:07]} 33. Kxg2 {[%clk 0:01:30]}  Kf8 {[%clk 0:00:07]} 34. Nc3 {[%clk 0:01:28]}  c4 {[%clk 0:00:03]} 35. Nd5 {[%clk 0:01:25]}  Bd8 {[%clk 0:00:02]} 36. Kf3 {[%clk 0:01:24]}  f5 {[%clk 0:00:03]} 37. Ke3 {[%clk 0:01:24]}  Kf7 {[%clk 0:00:03]} 38. Kd4 {[%clk 0:01:24]}  Ke6 {[%clk 0:00:04]} 39. Kxc4 {[%clk 0:01:25]}  Kxd7 {[%clk 0:00:05]} 40. Kb5 {[%clk 0:01:25]}  Kd6 {[%clk 0:00:04]} 41. Nxb6 {[%clk 0:01:25]}  g5 {[%clk 0:00:03]} 42. a5 {[%clk 0:01:20]}  gxf4 {[%clk 0:00:03]} 43. gxf4 {[%clk 0:01:13]}  Kc7 {[%clk 0:00:03]} 44. a6 {[%clk 0:01:11]}  Kb8 {[%clk 0:00:03]} 45. Nd5 {[%clk 0:01:08]}  Bh4 {[%clk 0:00:02]} 46. Ne3 {[%clk 0:00:48]}  Bg3 {[%clk 0:00:02]} 47. Nxf5 {[%clk 0:00:49]}  Bxf4 {[%clk 0:00:03]} 48. Ne7 {[%clk 0:00:49]}  h5 {[%clk 0:00:02]} 49. Nd5 {[%clk 0:00:42]}  Bg3 {[%clk 0:00:02]} 50. Nf6 {[%clk 0:00:40]}  h4 {[%clk 0:00:02]} 51. Ne4 {[%clk 0:00:40]}  Ka8 {[%clk 0:00:01]} 52. Nc3 {[%clk 0:00:39]}  Kb8 {[%clk 0:00:01]} 53. Nd5 {[%clk 0:00:40]}  Ka8 {[%clk 0:00:02]} 54. Nb4 {[%clk 0:00:40]}  Bf2 {[%clk 0:00:02]} 55. Nc6 {[%clk 0:00:38]}  Bg3 {[%clk 0:00:02]} 56. Kc4 {[%clk 0:00:39]}  Bf2 {[%clk 0:00:03]} 57. Kd5 {[%clk 0:00:39]}  Bg3 {[%clk 0:00:03]} 58. Ke4 {[%clk 0:00:40]}  Be1 {[%clk 0:00:03]} 59. Kf5 {[%clk 0:00:41]}  Bg3 {[%clk 0:00:04]} 60. Kg4 {[%clk 0:00:40]}  Be1 {[%clk 0:00:04]} 61. Nd4 {[%clk 0:00:39]}  Bg3 {[%clk 0:00:05]} 62. Nf5 {[%clk 0:00:38]}  Be1 {[%clk 0:00:05]} 63. Nxh4 {[%clk 0:00:38]}  Ka7 {[%clk 0:00:05]} 64. Ng2 {[%clk 0:00:38]}  Bc3 {[%clk 0:00:05]} 65. h4 {[%clk 0:00:37]}  Kxa6 {[%clk 0:00:06]} 66. h5 {[%clk 0:00:38]}  Kb7 {[%clk 0:00:06]} 67. Kg5 {[%clk 0:00:35]}  Kc6 {[%clk 0:00:06]} 68. h6 {[%clk 0:00:35]}  Kd7 {[%clk 0:00:06]} 69. Kg6 {[%clk 0:00:35]}  Ke8 {[%clk 0:00:05]} 70. h7 {[%clk 0:00:35]}  Kf8 {[%clk 0:00:06]} 71. Nf4 {[%clk 0:00:36]}  Bh8 {[%clk 0:00:02]} 72. Ne6+ {[%clk 0:00:29]}  Ke7 {[%clk 0:00:02]} 73. Ng7 {[%clk 0:00:29]}  Kf8 {[%clk 0:00:03]} 74. Nh5 {[%clk 0:00:29]}  Ke7 {[%clk 0:00:03]} 75. Nf6 {[%clk 0:00:29]}  Kf8 {[%clk 0:00:03]} 76. Ng4 {[%clk 0:00:26]}  Ke7 {[%clk 0:00:03]} 77. Nh6 {[%clk 0:00:27]}  Kf8 {[%clk 0:00:03]} 78. Nf7 {[%clk 0:00:27]}  Bg7 {[%clk 0:00:03]} 79. Nd8 {[%clk 0:00:22]}  Bh8 {[%clk 0:00:03]} 80. Ne6+ {[%clk 0:00:22]}  Ke7 {[%clk 0:00:04]} 81. Nf4 {[%clk 0:00:21]}  Kf8 {[%clk 0:00:04]} 82. Nh5 {[%clk 0:00:22]}  Ke7 {[%clk 0:00:04]} 83. Kh6 {[%clk 0:00:21]}  Kf7 {[%clk 0:00:04]} 84. Ng3 {[%clk 0:00:22]}  Bg7+ {[%clk 0:00:04]} 85. Kh5 {[%clk 0:00:20]}  Bh8 {[%clk 0:00:05]} 86. Nf5 {[%clk 0:00:21]}  Kf6 {[%clk 0:00:04]} 87. Nh4 {[%clk 0:00:19]}  Kg7 {[%clk 0:00:04]} 88. Ng6 {[%clk 0:00:20]}  Kxh7 {[%clk 0:00:05]} 1/2-1/2


[Site "https://www.chess.com"]

[Event "Titled Tuesday Blitz November 14 Late 2023"]
[White "WindWhistler11"]
[Black "Margvelashvili, Giorgi"]
[BlackFideId "13602926"]
[WhiteElo "2483"]
[BlackElo "2832"]
[Result "1-0"]
[Round "3"]
[TimeControl "180+1"]
[Date "2023.11.14"]
[WhiteClock "0:00:36"]
[BlackClock "0:00:15"]
[Board "42"]

1. Nf3 {[%clk 0:03:00]}  Nf6 {[%clk 0:02:58]} 2. d3 {[%clk 0:02:55]}  c5 {[%clk 0:02:56]} 3. e4 {[%clk 0:02:54]}  d6 {[%clk 0:02:56]} 4. Be2 {[%clk 0:02:53]}  Nc6 {[%clk 0:02:56]} 5. c3 {[%clk 0:02:53]}  Bg4 {[%clk 0:02:53]} 6. O-O {[%clk 0:02:53]}  e6 {[%clk 0:02:53]} 7. Re1 {[%clk 0:02:53]}  Be7 {[%clk 0:02:52]} 8. h3 {[%clk 0:02:53]}  Bh5 {[%clk 0:02:52]} 9. Bf4 {[%clk 0:02:53]}  O-O {[%clk 0:02:51]} 10. Bh2 {[%clk 0:02:49]}  c4 {[%clk 0:02:12]} 11. d4 {[%clk 0:02:37]}  Nxe4 {[%clk 0:02:07]} 12. Bxc4 {[%clk 0:02:37]}  d5 {[%clk 0:02:02]} 13. Bd3 {[%clk 0:02:36]}  Qb6 {[%clk 0:01:52]} 14. Qb3 {[%clk 0:02:30]}  Bxf3 {[%clk 0:01:45]} 15. gxf3 {[%clk 0:02:30]}  Nd6 {[%clk 0:01:26]} 16. Nd2 {[%clk 0:02:24]}  Qd8 {[%clk 0:01:23]} 17. Kh1 {[%clk 0:02:22]}  Na5 {[%clk 0:01:17]} 18. Qc2 {[%clk 0:02:21]}  g6 {[%clk 0:01:17]} 19. Rg1 {[%clk 0:02:13]}  Kh8 {[%clk 0:01:11]} 20. Nf1 {[%clk 0:01:59]}  Rc8 {[%clk 0:01:04]} 21. Ne3 {[%clk 0:01:57]}  Nac4 {[%clk 0:00:58]} 22. Ng4 {[%clk 0:01:55]}  Nf5 {[%clk 0:00:53]} 23. Rae1 {[%clk 0:01:50]}  Bd6 {[%clk 0:00:51]} 24. Bxf5 {[%clk 0:01:40]}  exf5 {[%clk 0:00:49]} 25. Ne5 {[%clk 0:01:40]}  Bxe5 {[%clk 0:00:41]} 26. dxe5 {[%clk 0:01:34]}  Qd7 {[%clk 0:00:36]} 27. Rd1 {[%clk 0:01:26]}  Qe6 {[%clk 0:00:36]} 28. Rge1 {[%clk 0:01:25]}  Rfd8 {[%clk 0:00:35]} 29. b3 {[%clk 0:01:24]}  Na5 {[%clk 0:00:35]} 30. Qd2 {[%clk 0:01:24]}  Nc6 {[%clk 0:00:36]} 31. Bf4 {[%clk 0:01:23]}  d4 {[%clk 0:00:32]} 32. c4 {[%clk 0:01:21]}  d3 {[%clk 0:00:31]} 33. Bg5 {[%clk 0:01:19]}  f4 {[%clk 0:00:24]} 34. Qxf4 {[%clk 0:01:16]}  Qxh3+ {[%clk 0:00:24]} 35. Kg1 {[%clk 0:01:12]}  Rd4 {[%clk 0:00:24]} 36. Re4 {[%clk 0:01:11]}  Rxe4 {[%clk 0:00:23]} 37. fxe4 {[%clk 0:01:10]}  Kg8 {[%clk 0:00:21]} 38. f3 {[%clk 0:00:59]}  Nd4 {[%clk 0:00:21]} 39. Kf2 {[%clk 0:00:52]}  Ne2 {[%clk 0:00:21]} 40. Qg4 {[%clk 0:00:50]}  Qxg4 {[%clk 0:00:18]} 41. fxg4 {[%clk 0:00:50]}  Nc3 {[%clk 0:00:18]} 42. Re1 {[%clk 0:00:47]}  Nxa2 {[%clk 0:00:18]} 43. Bd2 {[%clk 0:00:47]}  a5 {[%clk 0:00:15]} 44. Bxa5 {[%clk 0:00:44]}  Ra8 {[%clk 0:00:16]} 45. Bd2 {[%clk 0:00:43]}  Ra3 {[%clk 0:00:15]} 46. Ra1 {[%clk 0:00:42]}  Kg7 {[%clk 0:00:13]} 47. g5 {[%clk 0:00:42]}  Kg8 {[%clk 0:00:13]} 48. Ke3 {[%clk 0:00:42]}  Nb4 {[%clk 0:00:13]} 49. Rxa3 {[%clk 0:00:39]}  Nc2+ {[%clk 0:00:13]} 50. Kxd3 {[%clk 0:00:39]}  Nxa3 {[%clk 0:00:14]} 51. Kc3 {[%clk 0:00:40]}  Nb1+ {[%clk 0:00:13]} 52. Kc2 {[%clk 0:00:39]}  Nxd2 {[%clk 0:00:14]} 53. Kxd2 {[%clk 0:00:39]}  Kf8 {[%clk 0:00:14]} 54. Kd3 {[%clk 0:00:39]}  Ke7 {[%clk 0:00:15]} 55. Kd4 {[%clk 0:00:38]}  Ke6 {[%clk 0:00:15]} 56. b4 {[%clk 0:00:38]}  b6 {[%clk 0:00:16]} 57. b5 {[%clk 0:00:36]}  Ke7 {[%clk 0:00:15]} 58. c5 {[%clk 0:00:36]}  bxc5+ {[%clk 0:00:14]} 59. Kxc5 {[%clk 0:00:37]}  Kd7 {[%clk 0:00:15]} 60. b6 {[%clk 0:00:35]}  Kc8 {[%clk 0:00:16]} 61. Kd6 {[%clk 0:00:35]}  Kb7 {[%clk 0:00:15]} 62. Ke7 {[%clk 0:00:36]}  h5 {[%clk 0:00:15]} 63. gxh6 {[%clk 0:00:36]} 1-0


[Site "https://www.chess.com"]

[Event "Titled Tuesday Blitz November 14 Late 2023"]
[White "MKlose11"]
[Black "Wanyama, Harold"]
[BlackFideId "10000380"]
[WhiteElo "2669"]
[BlackElo "2456"]
[Result "1-0"]
[Round "3"]
[TimeControl "180+1"]
[Date "2023.11.14"]
[WhiteClock "0:00:18"]
[BlackClock "0:00:00"]
[Board "43"]

1. e4 {[%clk 0:02:57]}  c5 {[%clk 0:02:54]} 2. Nc3 {[%clk 0:02:55]}  Nc6 {[%clk 0:02:52]} 3. g3 {[%clk 0:02:56]}  g6 {[%clk 0:02:52]} 4. d3 {[%clk 0:02:55]}  Bg7 {[%clk 0:02:51]} 5. Be3 {[%clk 0:02:51]}  d6 {[%clk 0:02:52]} 6. Qd2 {[%clk 0:02:50]}  h6 {[%clk 0:02:48]} 7. Bg2 {[%clk 0:02:50]}  Nf6 {[%clk 0:02:48]} 8. h3 {[%clk 0:02:49]}  Qa5 {[%clk 0:02:47]} 9. Nge2 {[%clk 0:02:49]}  Bd7 {[%clk 0:02:46]} 10. O-O {[%clk 0:02:48]}  e5 {[%clk 0:02:40]} 11. f4 {[%clk 0:02:47]}  Nd4 {[%clk 0:02:37]} 12. Rf2 {[%clk 0:02:37]}  b5 {[%clk 0:02:28]} 13. g4 {[%clk 0:02:23]}  b4 {[%clk 0:02:25]} 14. Nd1 {[%clk 0:02:09]}  Bxg4 {[%clk 0:02:11]} 15. hxg4 {[%clk 0:01:59]}  Nxg4 {[%clk 0:02:10]} 16. Rf1 {[%clk 0:01:56]}  Nxe3 {[%clk 0:02:00]} 17. Nxe3 {[%clk 0:01:57]}  Nxe2+ {[%clk 0:01:53]} 18. Qxe2 {[%clk 0:01:57]}  exf4 {[%clk 0:01:53]} 19. Nc4 {[%clk 0:01:57]}  Qc7 {[%clk 0:01:47]} 20. Rxf4 {[%clk 0:01:57]}  O-O {[%clk 0:01:45]} 21. Raf1 {[%clk 0:01:53]}  Rae8 {[%clk 0:01:42]} 22. b3 {[%clk 0:01:45]}  d5 {[%clk 0:01:39]} 23. Ne3 {[%clk 0:01:42]}  dxe4 {[%clk 0:01:36]} 24. dxe4 {[%clk 0:01:43]}  Bd4 {[%clk 0:01:34]} 25. Kh1 {[%clk 0:01:42]}  Re5 {[%clk 0:01:30]} 26. Nd5 {[%clk 0:01:35]}  Qd8 {[%clk 0:01:30]} 27. Nf6+ {[%clk 0:01:17]}  Kg7 {[%clk 0:01:29]} 28. Bh3 {[%clk 0:01:13]}  Re7 {[%clk 0:00:57]} 29. Qg4 {[%clk 0:01:07]}  Bxf6 {[%clk 0:00:39]} 30. Rxf6 {[%clk 0:01:06]}  Qd4 {[%clk 0:00:35]} 31. Qf4 {[%clk 0:01:03]}  Qxe4+ {[%clk 0:00:32]} 32. Qxe4 {[%clk 0:01:03]}  Rxe4 {[%clk 0:00:33]} 33. Bg2 {[%clk 0:00:57]}  Re7 {[%clk 0:00:25]} 34. Bd5 {[%clk 0:00:56]}  h5 {[%clk 0:00:23]} 35. Bc4 {[%clk 0:00:55]}  a5 {[%clk 0:00:16]} 36. Kg2 {[%clk 0:00:55]}  g5 {[%clk 0:00:14]} 37. R1f2 {[%clk 0:00:49]}  h4 {[%clk 0:00:14]} 38. Kh3 {[%clk 0:00:48]}  Re3+ {[%clk 0:00:10]} 39. Kg2 {[%clk 0:00:36]}  g4 {[%clk 0:00:11]} 40. Rxf7+ {[%clk 0:00:36]}  Rxf7 {[%clk 0:00:11]} 41. Rxf7+ {[%clk 0:00:37]}  Kg6 {[%clk 0:00:12]} 42. Rc7 {[%clk 0:00:36]}  Re5 {[%clk 0:00:11]} 43. Rc8 {[%clk 0:00:21]}  Kg5 {[%clk 0:00:11]} 44. Rf8 {[%clk 0:00:19]}  h3+ {[%clk 0:00:10]} 45. Kh2 {[%clk 0:00:19]}  Kh4 {[%clk 0:00:08]} 46. Rh8+ {[%clk 0:00:18]}  Kg5 {[%clk 0:00:09]} 47. Bd3 {[%clk 0:00:19]}  Kf4 {[%clk 0:00:07]} 48. Rf8+ {[%clk 0:00:19]}  Ke3 {[%clk 0:00:07]} 49. Kg3 {[%clk 0:00:19]}  Rg5 {[%clk 0:00:05]} 50. Rh8 {[%clk 0:00:19]}  Kd2 {[%clk 0:00:00]} 51. Ra8 {[%clk 0:00:18]} 1-0


[Site "https://www.chess.com"]

[Event "Titled Tuesday Blitz November 14 Late 2023"]
[White "Papasimakopoulos, Alexandros"]
[Black "Saya, Ethan"]
[WhiteFideId "4244125"]
[BlackFideId "26095181"]
[WhiteElo "2637"]
[BlackElo "2419"]
[Result "1/2-1/2"]
[Round "3"]
[TimeControl "180+1"]
[Date "2023.11.14"]
[WhiteClock "0:00:36"]
[BlackClock "0:00:04"]
[Board "46"]

1. d4 {[%clk 0:02:59]}  d5 {[%clk 0:02:59]} 2. c4 {[%clk 0:02:58]}  c6 {[%clk 0:03:00]} 3. cxd5 {[%clk 0:02:58]}  cxd5 {[%clk 0:03:00]} 4. Bf4 {[%clk 0:02:58]}  Nc6 {[%clk 0:02:59]} 5. e3 {[%clk 0:02:58]}  Nf6 {[%clk 0:02:57]} 6. Nc3 {[%clk 0:02:58]}  a6 {[%clk 0:02:50]} 7. Bd3 {[%clk 0:02:58]}  e6 {[%clk 0:02:44]} 8. Rc1 {[%clk 0:02:56]}  Bd6 {[%clk 0:02:43]} 9. Bxd6 {[%clk 0:02:56]}  Qxd6 {[%clk 0:02:44]} 10. f4 {[%clk 0:02:57]}  O-O {[%clk 0:02:37]} 11. Nf3 {[%clk 0:02:57]}  Bd7 {[%clk 0:02:36]} 12. Ne5 {[%clk 0:02:57]}  Na7 {[%clk 0:02:32]} 13. O-O {[%clk 0:02:56]}  Rac8 {[%clk 0:02:30]} 14. g4 {[%clk 0:02:55]}  Bb5 {[%clk 0:02:27]} 15. g5 {[%clk 0:02:50]}  Ne4 {[%clk 0:02:12]} 16. Nxe4 {[%clk 0:02:36]}  dxe4 {[%clk 0:02:08]} 17. Bxb5 {[%clk 0:02:35]}  Nxb5 {[%clk 0:02:00]} 18. Qb3 {[%clk 0:02:34]}  Qd5 {[%clk 0:01:33]} 19. Qxd5 {[%clk 0:02:33]}  exd5 {[%clk 0:01:34]} 20. f5 {[%clk 0:02:33]}  Nd6 {[%clk 0:01:30]} 21. f6 {[%clk 0:02:32]}  Rxc1 {[%clk 0:01:20]} 22. Rxc1 {[%clk 0:02:31]}  Rc8 {[%clk 0:01:21]} 23. Rxc8+ {[%clk 0:02:23]}  Nxc8 {[%clk 0:01:22]} 24. Kf2 {[%clk 0:02:23]}  Nd6 {[%clk 0:01:08]} 25. Kg3 {[%clk 0:02:22]}  h6 {[%clk 0:01:00]} 26. Kf4 {[%clk 0:01:53]}  hxg5+ {[%clk 0:00:54]} 27. Kxg5 {[%clk 0:01:54]}  b5 {[%clk 0:00:55]} 28. b3 {[%clk 0:01:53]}  a5 {[%clk 0:00:47]} 29. Nd7 {[%clk 0:01:50]}  b4 {[%clk 0:00:22]} 30. Nb6 {[%clk 0:01:49]}  Nb5 {[%clk 0:00:22]} 31. Nxd5 {[%clk 0:01:49]}  Nc3 {[%clk 0:00:22]} 32. Ne7+ {[%clk 0:01:49]}  Kf8 {[%clk 0:00:23]} 33. Nc6 {[%clk 0:01:45]}  Nxa2 {[%clk 0:00:19]} 34. d5 {[%clk 0:01:45]}  gxf6+ {[%clk 0:00:17]} 35. Kxf6 {[%clk 0:01:44]}  a4 {[%clk 0:00:15]} 36. d6 {[%clk 0:01:17]}  Ke8 {[%clk 0:00:15]} 37. Nd4 {[%clk 0:00:58]}  axb3 {[%clk 0:00:05]} 38. Nxb3 {[%clk 0:00:59]}  Nc3 {[%clk 0:00:05]} 39. h4 {[%clk 0:00:57]}  Nd5+ {[%clk 0:00:05]} 40. Ke5 {[%clk 0:00:57]}  Nxe3 {[%clk 0:00:05]} 41. Kxe4 {[%clk 0:00:57]}  Ng4 {[%clk 0:00:05]} 42. Kf5 {[%clk 0:00:57]}  Nh6+ {[%clk 0:00:04]} 43. Kg5 {[%clk 0:00:56]}  Ng8 {[%clk 0:00:04]} 44. Nc5 {[%clk 0:00:55]}  b3 {[%clk 0:00:03]} 45. Nxb3 {[%clk 0:00:52]}  Kd7 {[%clk 0:00:03]} 46. Nd2 {[%clk 0:00:49]}  Kxd6 {[%clk 0:00:04]} 47. Ne4+ {[%clk 0:00:50]}  Ke6 {[%clk 0:00:05]} 48. h5 {[%clk 0:00:47]}  f5 {[%clk 0:00:05]} 49. Ng3 {[%clk 0:00:46]}  f4 {[%clk 0:00:04]} 50. Ne2 {[%clk 0:00:42]}  f3 {[%clk 0:00:02]} 51. Nd4+ {[%clk 0:00:42]}  Kf7 {[%clk 0:00:03]} 52. Nxf3 {[%clk 0:00:43]}  Kg7 {[%clk 0:00:02]} 53. Nh4 {[%clk 0:00:40]}  Nh6 {[%clk 0:00:02]} 54. Ng2 {[%clk 0:00:36]}  Nf7+ {[%clk 0:00:03]} 55. Kf5 {[%clk 0:00:36]}  Kh6 {[%clk 0:00:03]} 56. Kg4 {[%clk 0:00:36]}  Ne5+ {[%clk 0:00:03]} 57. Kh4 {[%clk 0:00:36]}  Ng6+ {[%clk 0:00:04]} 58. Kg3 {[%clk 0:00:36]}  Kxh5 {[%clk 0:00:04]} 1/2-1/2


[Site "https://www.chess.com"]

[Event "Titled Tuesday Blitz November 14 Late 2023"]
[White "Adewumi, Tanitoluwa"]
[Black "Semenenko, Dmytry"]
[WhiteFideId "30966396"]
[BlackFideId "14118645"]
[WhiteElo "2630"]
[BlackElo "2392"]
[Result "1-0"]
[Round "3"]
[TimeControl "180+1"]
[Date "2023.11.14"]
[WhiteClock "0:00:04"]
[BlackClock "0:00:00"]
[Board "47"]

1. e4 {[%clk 0:02:52]}  Nf6 {[%clk 0:02:59]} 2. e5 {[%clk 0:02:52]}  Nd5 {[%clk 0:03:00]} 3. c4 {[%clk 0:02:46]}  Nb6 {[%clk 0:02:59]} 4. d4 {[%clk 0:02:46]}  d6 {[%clk 0:02:59]} 5. f4 {[%clk 0:02:47]}  dxe5 {[%clk 0:03:00]} 6. fxe5 {[%clk 0:02:48]}  Nc6 {[%clk 0:03:00]} 7. Be3 {[%clk 0:02:47]}  Bf5 {[%clk 0:03:00]} 8. Nc3 {[%clk 0:02:47]}  e6 {[%clk 0:03:00]} 9. Nf3 {[%clk 0:02:47]}  Bg4 {[%clk 0:03:01]} 10. Be2 {[%clk 0:02:38]}  Bxf3 {[%clk 0:03:00]} 11. gxf3 {[%clk 0:02:37]}  Qh4+ {[%clk 0:03:00]} 12. Bf2 {[%clk 0:02:36]}  Qf4 {[%clk 0:03:00]} 13. c5 {[%clk 0:02:33]}  Nd5 {[%clk 0:03:00]} 14. Nxd5 {[%clk 0:02:31]}  exd5 {[%clk 0:03:00]} 15. Qd2 {[%clk 0:02:28]}  Qf5 {[%clk 0:03:00]} 16. O-O-O {[%clk 0:02:13]}  g6 {[%clk 0:02:44]} 17. Be3 {[%clk 0:02:06]}  h5 {[%clk 0:02:18]} 18. Bd3 {[%clk 0:01:51]}  Qxf3 {[%clk 0:02:04]} 19. Rhf1 {[%clk 0:01:44]}  Qh3 {[%clk 0:02:03]} 20. e6 {[%clk 0:01:23]}  Qxe6 {[%clk 0:01:56]} 21. Bg5 {[%clk 0:01:18]}  Kd7 {[%clk 0:01:40]} 22. Rde1 {[%clk 0:01:07]}  Qg4 {[%clk 0:01:38]} 23. Rxf7+ {[%clk 0:01:05]}  Be7 {[%clk 0:01:21]} 24. Bxe7 {[%clk 0:01:00]}  Nxe7 {[%clk 0:01:21]} 25. Rexe7+ {[%clk 0:00:59]}  Kd8 {[%clk 0:01:21]} 26. Rd7+ {[%clk 0:00:52]}  Qxd7 {[%clk 0:01:16]} 27. Rxd7+ {[%clk 0:00:52]}  Kxd7 {[%clk 0:01:17]} 28. Bxg6 {[%clk 0:00:51]}  Raf8 {[%clk 0:01:15]} 29. Qg5 {[%clk 0:00:49]}  Kc8 {[%clk 0:01:13]} 30. Qxd5 {[%clk 0:00:33]}  Rhg8 {[%clk 0:01:09]} 31. Bf5+ {[%clk 0:00:33]}  Kb8 {[%clk 0:01:09]} 32. Be4 {[%clk 0:00:29]}  c6 {[%clk 0:01:07]} 33. Qe5+ {[%clk 0:00:29]}  Ka8 {[%clk 0:01:06]} 34. Kd2 {[%clk 0:00:26]}  Re8 {[%clk 0:01:06]} 35. Qf5 {[%clk 0:00:21]}  Rgf8 {[%clk 0:01:06]} 36. Qh7 {[%clk 0:00:20]}  Rf4 {[%clk 0:01:04]} 37. Bg6 {[%clk 0:00:16]}  Rxd4+ {[%clk 0:01:03]} 38. Kc3 {[%clk 0:00:16]}  Red8 {[%clk 0:01:03]} 39. Qg7 {[%clk 0:00:15]}  R4d5 {[%clk 0:01:00]} 40. b4 {[%clk 0:00:15]}  a5 {[%clk 0:00:58]} 41. a3 {[%clk 0:00:13]}  axb4+ {[%clk 0:00:58]} 42. axb4 {[%clk 0:00:14]}  Rd1 {[%clk 0:00:57]} 43. Bc2 {[%clk 0:00:11]}  R1d5 {[%clk 0:00:56]} 44. Qf6 {[%clk 0:00:11]}  Re8 {[%clk 0:00:54]} 45. Qf7 {[%clk 0:00:08]}  Re3+ {[%clk 0:00:53]} 46. Kb2 {[%clk 0:00:08]}  Re2 {[%clk 0:00:51]} 47. Kc3 {[%clk 0:00:07]}  Re3+ {[%clk 0:00:50]} 48. Kc4 {[%clk 0:00:07]}  Re2 {[%clk 0:00:48]} 49. Bd3 {[%clk 0:00:06]}  Rd2 {[%clk 0:00:48]} 50. Qg8+ {[%clk 0:00:04]}  Ka7 {[%clk 0:00:47]} 51. Qh7 {[%clk 0:00:05]}  Rxh2 {[%clk 0:00:36]} 52. Be4 {[%clk 0:00:05]}  Rh4 {[%clk 0:00:35]} 53. Kc3 {[%clk 0:00:04]}  Re5 {[%clk 0:00:34]} 54. Bxc6 {[%clk 0:00:04]}  Rh3+ {[%clk 0:00:33]} 55. Kd4 {[%clk 0:00:03]}  Rh4+ {[%clk 0:00:09]} 56. Kxe5 {[%clk 0:00:03]}  Rxb4 {[%clk 0:00:09]} 57. Bxb7 {[%clk 0:00:03]}  Rxb7 {[%clk 0:00:09]} 58. Qxh5 {[%clk 0:00:03]}  Rb5 {[%clk 0:00:09]} 59. Kd6 {[%clk 0:00:04]}  Ka6 {[%clk 0:00:09]} 60. Qf7 {[%clk 0:00:04]}  Rb2 {[%clk 0:00:08]} 61. c6 {[%clk 0:00:04]}  Rd2+ {[%clk 0:00:08]} 62. Qd5 {[%clk 0:00:04]}  Rc2 {[%clk 0:00:00]} 63. Qd3+ {[%clk 0:00:04]} 1-0


[Site "https://www.chess.com"]